bitfinex/quotes_SOLUSD_20240808
["timestamp","ask_amount","ask_price","bid_price","bid_amount"]
[1723151556250,29.243,156.95,156.9,22.3067]
[1723151556741,6.3719,156.94,156.9,22.3067]
[1723151557260,1.59308227,156.94,156.87,22.55084834]
[1723151557442,22.8715,156.95,156.88,6.3742]
[1723151557443,6.3726,156.93,156.88,6.3742]
[1723151557847,22.8715,156.95,156.89,6.3737]
[1723151557848,6.3719,156.94,156.89,6.3737]
[1723151558053,22.8715,156.95,156.89,6.3737]
[1723151558054,29.4937778,156.95,156.9,6.3734]
[1723151558232,16.6148778,156.95,156.91,1.26436044]
[1723151558427,0.2507778,156.95,156.91,1.26436044]
[1723151559356,0.2507778,156.95,156.94,6.3718]
[1723151559577,0.2507778,156.95,156.94,7.63524607]
[1723151560073,0.2507778,156.95,156.94,52.63524607]
[1723151560865,0.2507778,156.95,156.94,51.3718]
[1723151562281,0.2507778,156.95,156.94,71.3718]
[1723151563555,0.2507778,156.95,156.94,87.1732]
[1723151563975,0.2507778,156.95,156.94,26.3718]
[1723151565253,28.4261,157.16,156.97,15.8014]
[1723151565558,6.3645,157.12,157.07,22.2826]
[1723151565759,1.59143159,157.11,156.98,6.6079]
[1723151565963,6.3662,157.08,157.03,6.3679]
[1723151566287,15.9193617,157.1,157.05,6.367]
[1723151566446,15.9193617,157.1,157.04,15.9187]
[1723151566645,15.9193617,157.1,157.05,6.3671]
[1723151566646,22.2850617,157.1,157.05,6.3671]
[1723151567676,1.5915807,157.09,157.04,15.9187]
[1723151567972,15.9193617,157.1,157.04,22.2864]
[1723151568170,6.3661,157.09,157.04,22.2864]
[1723151568881,15.9193617,157.1,157.04,15.9187]
[1723151569255,15.9193617,157.1,157.06,6.3666]
[1723151570483,15.9193617,157.1,157.07,6.3665]
[1723151572671,6.3672,157.06,156.97,35.8014]
[1723151572859,6.6254,157.09,157.02,15.9206]
[1723151573658,6.3663,157.08,157.03,6.3678]
[1723151573854,11.1537,157.09,157.04,6.3677]
[1723151574274,6.3662,157.08,157.04,6.3677]
[1723151574882,6.3662,157.08,157.03,6.3681]
[1723151575280,11.1537,157.09,157.04,6.3677]
[1723151575486,6.3664,157.08,157.03,6.3681]
[1723151576162,15.9193617,157.1,157.05,6.3673]
[1723151577472,15.9193617,157.1,157.04,15.9188]
[1723151577473,15.9193617,157.1,157.06,6.3669]
[1723151577669,22.2847617,157.1,157.05,6.3673]
[1723151580476,6.3657,157.09,157.05,6.3673]
[1723151580683,6.3657,157.09,157.04,22.2865]
[1723151582157,22.2847617,157.1,157.05,6.3673]
[1723151582467,0.8141617,157.1,157.06,6.3666]
[1723151583382,7.1794617,157.1,157.06,6.3666]
[1723151585068,7.1794617,157.1,157.05,6.3673]
[1723151585579,6.3665,157.08,157.04,15.9188]
[1723151585786,0.8141617,157.1,157.04,15.9188]
[1723151585966,6.3662,157.08,157.04,15.9188]
[1723151586285,6.3669,157.07,157.01,15.9221]
[1723151586459,6.3662,157.08,157.03,6.3678]
[1723151586659,6.3662,157.08,157.04,6.3677]
[1723151586861,0.8141617,157.1,157.05,6.3673]
[1723151587490,7.1798617,157.1,157.05,6.3673]
[1723151589263,0.8141617,157.1,157.0,15.9234]
[1723151589480,6.3666,157.07,157.03,6.3681]
[1723151589684,6.3662,157.08,157.04,6.3677]
[1723151589892,6.3662,157.08,157.02,15.9207]
[1723151589893,6.3662,157.08,157.03,6.3681]
[1723151590771,6.3662,157.08,157.04,6.3677]
[1723151591583,2.40579344,157.1,157.02,15.9207]
[1723151591965,6.3664,157.08,157.03,6.3681]
[1723151592467,6.3666,157.07,157.03,6.3681]
[1723151593476,6.367,157.06,157.02,22.2892]
[1723151593977,6.3663,157.08,157.03,6.3681]
[1723151595179,2.40582849,157.1,157.02,15.9207]
[1723151595180,6.367,157.06,157.02,15.9207]
[1723151595384,0.8141617,157.1,157.02,15.9207]
[1723151596082,6.3669,157.07,157.02,22.289]
[1723151597812,6.3669,157.07,157.03,6.3681]
[1723151597979,6.3661,157.08,157.03,6.3681]
[1723151598375,0.8141617,157.1,157.02,15.9207]
[1723151598580,7.1797617,157.1,157.05,6.3673]
[1723151600170,0.8141617,157.1,157.09,6.3657]
[1723151600384,0.8141617,157.1,157.07,1.26032404]
[1723151601101,0.8141617,157.1,157.08,1.26032329]
[1723151601283,0.8141617,157.1,157.07,6.3665]
[1723151601798,0.8141617,157.1,157.06,22.2837]
[1723151602193,0.8141617,157.1,157.07,6.3665]
[1723151602498,0.8141617,157.1,157.06,22.2837]
[1723151603186,0.8141617,157.1,157.07,6.3665]
[1723151603386,0.8141617,157.1,157.09,6.3657]
[1723151603597,0.8141617,157.1,157.08,22.2805]
[1723151605008,0.8141617,157.1,157.09,6.3657]
[1723151614994,0.8141617,157.1,157.09,7.6250611]
[1723151615195,0.8141617,157.1,157.09,52.6250611]
[1723151616409,0.8141617,157.1,157.09,51.3657]
[1723151616794,0.8141617,157.1,157.09,6.3657]
[1723151617314,0.8141617,157.1,157.09,51.3657]
[1723151627522,0.8141617,157.1,157.09,6.3657]
[1723151627722,0.8141617,157.1,157.09,51.3657]
[1723151643343,0.8141617,157.1,157.09,52.6247119]
[1723151644738,0.8141617,157.1,157.09,51.3657]
[1723151645422,0.8141617,157.1,157.09,52.62454264]
[1723151645623,0.8141617,157.1,157.09,51.3657]
[1723151646326,0.8141617,157.1,157.09,72.62453681]
[1723151647028,0.8141617,157.1,157.09,71.3657]
[1723151647230,0.8141617,157.1,157.09,72.62384822]
[1723151648348,0.8141617,157.1,157.09,71.3657]
[1723151649022,0.8141617,157.1,157.09,72.62406058]
[1723151651626,0.8141617,157.1,157.09,92.62406058]
[1723151654027,12.0567,157.24,157.2,6.3612]
[1723151654028,6.0,157.24,157.2,6.3612]
[1723151654353,6.0,157.24,157.19,15.9038]
[1723151654354,6.0,157.24,157.21,6.3606]
[1723151656862,6.0,157.24,157.22,15.9008]
[1723151657036,6.0,157.24,157.23,6.3601]
[1723151657740,6.0,157.24,157.23,71.3601]
[1723151658145,0.8141617,157.26,157.25,22.2575]
[1723151658337,27.5488,157.4,157.35,6.355]
[1723151658541,21.1954,157.4,157.35,6.355]
[1723151658936,21.1954,157.4,157.3,34.14558179]
[1723151658937,21.1954,157.44,157.36,17.13969714]
[1723151659150,10.89125651,157.53,157.36,17.13969714]
[1723151659151,42.3908,157.51,157.41,6.3528]
[1723151659464,6.35,157.48,157.41,6.3528]
[1723151659852,1.5878145,157.47,157.41,6.3528]
[1723151660455,6.3492,157.5,157.41,1.25151119]
[1723151660836,27.5442,157.51,157.4,45.0]
[1723151661039,21.1954,157.51,157.41,1.25111881]
[1723151661235,6.3492,157.5,157.4,45.0]
[1723151661457,1.58770038,157.5,157.41,6.3528]
[1723151662360,7.1369617,157.42,157.37,6.3544]
[1723151662551,13.4894617,157.42,157.37,6.3544]
[1723151662865,7.1369617,157.42,157.37,6.3544]
[1723151663357,7.1369617,157.42,157.38,6.3539]
[1723151663550,0.8141617,157.42,157.39,6.3532]
[1723151663751,0.8141617,157.42,157.38,22.2384]
[1723151664137,0.8141617,157.42,157.34,15.8883]
[1723151664340,0.8141617,157.42,157.2,26.63759767]
[1723151664341,22.4159,157.41,157.27,15.4989]
[1723151664543,6.354,157.38,157.32,6.3563]
[1723151664745,22.4159,157.41,157.33,15.8896]
[1723151664939,22.4159,157.41,157.35,6.3552]
[1723151665158,22.4159,157.41,157.34,1.2536103]
[1723151665446,22.4159,157.41,157.37,6.3543]
[1723151665641,28.7687,157.41,157.36,15.887]
[1723151666059,22.4159,157.41,157.36,22.2416]
[1723151666363,22.4159,157.41,157.37,1.25315237]
[1723151666564,22.4159,157.41,157.36,22.2416]
[1723151666737,28.7687,157.41,157.36,22.2416]
[1723151666940,28.7687,157.41,157.36,15.887]
[1723151667143,28.7687,157.41,157.36,22.2418]
[1723151667444,6.3536,157.39,157.34,6.3553]
[1723151667855,6.3541,157.38,157.33,15.89]
[1723151668062,6.3545,157.37,157.33,15.89]
[1723151668364,6.3548,157.36,157.31,6.3565]
[1723151668682,6.3545,157.37,157.31,6.3565]
[1723151669161,22.4159,157.41,157.27,47.2897]
[1723151669162,6.3536,157.39,157.32,15.8902]
[1723151669369,6.3533,157.4,157.34,6.3552]
[1723151669585,6.3533,157.4,157.35,6.3551]
[1723151670048,6.3538,157.39,157.33,6.3557]
[1723151670441,6.3541,157.38,157.33,6.356]
[1723151670644,22.4159,157.41,157.32,15.8902]
[1723151671064,6.3548,157.36,157.32,15.8902]
[1723151671265,6.3536,157.39,157.34,6.3555]
[1723151672170,22.4159,157.41,157.34,6.3555]
[1723151672768,6.3536,157.39,157.34,6.3555]
[1723151673065,6.3543,157.38,157.32,15.8902]
[1723151673250,6.3536,157.4,157.34,15.8883]
[1723151673445,6.3536,157.4,157.35,1.2535668]
[1723151673765,6.3537,157.39,157.34,15.8883]
[1723151674067,22.4159,157.41,157.34,15.8883]
[1723151674450,6.3541,157.38,157.34,15.8883]
[1723151675050,22.4159,157.41,157.34,22.2438]
[1723151675051,6.3537,157.39,157.34,22.2438]
[1723151675476,6.3537,157.39,157.35,6.3552]
[1723151675860,6.3536,157.39,157.34,22.2439]
[1723151676743,17.3159,157.41,157.31,15.8917]
[1723151676946,6.3544,157.37,157.32,6.3561]
[1723151677563,7.94354637,157.36,157.31,22.2484]
[1723151677877,6.3544,157.37,157.32,6.3564]
[1723151678257,6.3541,157.38,157.33,6.3559]
[1723151678776,6.3545,157.37,157.31,15.8917]
[1723151679281,6.3555,157.35,157.31,15.8917]
[1723151679577,6.3555,157.35,157.31,22.2485]
[1723151679767,6.3548,157.36,157.31,22.2485]
[1723151680363,33.1986,157.41,157.32,1.25461957]
[1723151680567,6.3541,157.38,157.33,6.3557]
[1723151680758,6.3541,157.38,157.34,6.3555]
[1723151681080,6.3541,157.38,157.32,1.25461957]
[1723151681575,6.3541,157.38,157.33,6.356]
[1723151682374,6.3545,157.37,157.32,7.61101957]
[1723151682557,6.3545,157.37,157.33,6.356]
[1723151683056,6.354,157.38,157.33,6.356]
[1723151684178,17.3159,157.41,157.33,15.8896]
[1723151684366,6.3537,157.39,157.34,7.60940321]
[1723151684679,6.3532,157.4,157.36,6.3548]
[1723151684865,16.0931,157.41,157.37,7.60787482]
[1723151685067,7.1666617,157.42,157.37,1.25347482]
[1723151685260,7.1666617,157.42,157.37,7.60757482]
[1723151685578,6.3536,157.4,157.35,22.2425]
[1723151685883,6.3544,157.37,157.32,22.2474]
[1723151686380,6.3544,157.37,157.33,6.356]
[1723151686676,16.6958617,157.42,157.33,6.356]
[1723151686677,6.3541,157.38,157.33,6.356]
[1723151686883,6.3544,157.37,157.32,22.2474]
[1723151687176,6.3557,157.34,157.29,22.1953]
[1723151687363,15.7987,157.39,157.32,6.3561]
[1723151687973,6.3547,157.37,157.32,6.3561]
[1723151688680,15.7987,157.39,157.31,15.8915]
[1723151688855,6.3549,157.36,157.31,22.2483]
[1723151689670,6.3553,157.35,157.31,22.2483]
[1723151690177,6.3549,157.36,157.31,22.2483]
[1723151691567,6.3553,157.35,157.31,22.2483]
[1723151692281,6.3549,157.36,157.31,22.2483]
[1723151692583,6.3552,157.35,157.31,22.2483]
[1723151692786,6.3552,157.36,157.31,22.2483]
[1723151693369,15.7987,157.39,157.31,6.3567]
[1723151694179,6.3548,157.36,157.32,6.3564]
[1723151694496,6.3545,157.37,157.32,5.8564]
[1723151696894,6.3545,157.37,157.33,6.356]
[1723151698588,15.7987,157.39,157.33,6.356]
[1723151698789,15.7987,157.39,157.34,6.3554]
[1723151699088,6.3532,157.4,157.35,1.25409461]
[1723151699394,6.3532,157.4,157.35,7.60919461]
[1723151699591,5.8532,157.4,157.35,7.60919461]
[1723151699816,5.8532,157.4,157.35,6.3551]
[1723151700293,5.01884666,157.42,157.34,15.8885]
[1723151700497,5.01884666,157.42,157.29,6.3014]
[1723151700498,5.01900194,157.42,157.32,6.3563]
[1723151700672,6.3547,157.37,157.32,6.3563]
[1723151702775,6.3547,157.37,157.33,6.356]
[1723151703093,6.3541,157.38,157.33,6.356]
[1723151704197,0.8141617,157.42,157.39,6.3533]
[1723151704792,0.8141617,157.42,157.38,1.252936]
[1723151705306,0.8141617,157.42,157.39,6.3535]
[1723151705596,6.3533,157.4,157.36,6.3547]
[1723151705800,6.3529,157.41,157.36,6.3547]
[1723151706177,6.3533,157.4,157.36,6.3547]
[1723151706500,0.8141617,157.42,157.34,15.8887]
[1723151706678,15.056,157.41,157.34,15.8887]
[1723151706878,46.58888542,157.4,157.31,6.1685]
[1723151707186,6.3549,157.36,157.31,12.5253]
[1723151707788,6.3549,157.36,157.31,12.525]
[1723151708390,6.3549,157.36,157.32,6.3563]
[1723151708695,6.3545,157.37,157.32,6.3563]
[1723151709190,6.355,157.36,157.31,12.5252]
[1723151709395,47.60921166,157.4,157.3,15.8922]
[1723151709695,17.47436703,157.39,157.28,6.63635926]
[1723151709893,15.8887,157.35,157.28,6.63635926]
[1723151710101,1.58936974,157.34,157.28,6.63635926]
[1723151710300,6.3565,157.32,157.28,6.63635926]
[1723151710486,30.9447,157.35,157.28,6.63635926]
[1723151710687,46.58965488,157.34,157.28,6.63635926]
[1723151710869,6.3573,157.3,157.26,15.8965]
[1723151711076,6.3585,157.27,157.23,15.8998]
[1723151711275,1.58988197,157.26,157.23,15.8998]
[1723151711678,15.891,157.33,157.24,6.3596]
[1723151711879,6.3569,157.31,157.26,6.3588]
[1723151712080,21.4112,157.35,157.3,6.3572]
[1723151712395,6.3557,157.34,157.3,6.3572]
[1723151712699,15.056,157.35,157.29,22.2511]
[1723151713271,21.4116,157.35,157.3,6.3572]
[1723151713476,6.3561,157.33,157.29,15.8935]
[1723151715098,6.3564,157.32,157.28,6.358]
[1723151715689,15.056,157.35,157.29,6.3575]
[1723151715890,51.3557,157.34,157.29,6.3575]
[1723151716202,6.3549,157.36,157.27,17.30502195]
[1723151716388,15.6273,157.39,157.27,16.0492]
[1723151716592,18.19072884,157.39,157.3,15.8924]
[1723151716903,6.3548,157.37,157.32,6.3563]
[1723151717482,6.3548,157.36,157.31,6.3568]
[1723151718397,6.3552,157.35,157.31,6.3568]
[1723151718597,6.3547,157.37,157.32,6.3564]
[1723151719588,5.3547,157.37,157.32,6.3564]
[1723151719787,15.6273,157.39,157.3,15.8924]
[1723151720096,6.3531,157.41,157.36,6.3545]
[1723151720295,18.4827649,157.44,157.34,15.8884]
[1723151720479,6.3536,157.39,157.34,22.2439]
[1723151720880,15.8793,157.44,157.34,15.8884]
[1723151721091,6.3535,157.4,157.35,6.3551]
[1723151721291,2.40294821,157.42,157.34,15.8884]
[1723151721507,2.40294821,157.42,157.31,6.1882]
[1723151722211,6.3549,157.36,157.31,12.5446]
[1723151722991,0.8141617,157.42,157.33,6.3556]
[1723151723194,16.8313617,157.42,157.33,6.3556]
[1723151723499,45.0,157.41,157.33,6.3556]
[1723151724002,6.3544,157.37,157.32,22.2466]
[1723151724382,6.3544,157.37,157.33,6.356]
[1723151724889,16.8313617,157.42,157.34,15.8884]
[1723151725100,6.3535,157.4,157.35,6.3551]
[1723151725495,7.94229268,157.39,157.35,6.3551]
[1723151726017,6.3536,157.39,157.35,6.3551]
[1723151726193,18.42010405,157.42,157.35,6.3551]
[1723151726194,6.3532,157.4,157.35,6.3551]
[1723151726513,6.3532,157.4,157.35,6.3552]
[1723151727105,6.3532,157.4,157.36,6.3548]
[1723151727511,6.3532,157.4,157.35,6.3552]
[1723151727908,16.8313617,157.42,157.36,6.3548]
[1723151728118,0.8141617,157.42,157.36,15.8863]
[1723151728418,0.8141617,157.42,157.39,6.3535]
[1723151729497,8.75489568,157.42,157.38,6.354]
[1723151729809,8.75489568,157.42,157.37,6.3543]
[1723151730389,8.75489568,157.42,157.36,15.8863]
[1723151730390,1.58852083,157.41,157.36,15.8863]
[1723151730609,1.58852083,157.41,157.33,38.111]
[1723151730610,6.3541,157.38,157.33,38.111]
[1723151731516,6.3537,157.39,157.34,6.3556]
[1723151731694,6.354,157.38,157.34,6.3556]
[1723151732199,2.40301263,157.42,157.33,38.111]
[1723151732404,47.40301263,157.42,157.33,38.111]
[1723151732606,6.3545,157.37,157.33,38.111]
[1723151732907,6.3545,157.37,157.33,44.467]
[1723151733113,6.3541,157.38,157.33,44.467]
[1723151733496,6.3545,157.37,157.33,38.111]
[1723151734205,6.354,157.38,157.33,44.4667]
[1723151735214,6.354,157.38,157.34,6.3555]
[1723151735406,6.354,157.38,157.33,44.4669]
[1723151736416,6.3544,157.37,157.33,44.4669]
[1723151737407,6.3544,157.37,157.33,38.111]
[1723151738210,6.3572,157.3,157.29,22.4854]
[1723151738404,6.3569,157.31,157.29,22.4854]
[1723151738611,15.8887,157.35,157.29,22.4854]
[1723151738928,6.356,157.33,157.29,22.4854]
[1723151739127,1.58940291,157.35,157.29,22.4854]
[1723151739421,1.58940291,157.35,157.25,22.4854]
[1723151739422,15.8897,157.34,157.25,22.4854]
[1723151739597,1.58968058,157.33,157.25,22.4854]
[1723151739798,6.3577,157.29,157.25,22.4854]
[1723151739995,6.3577,157.29,157.25,28.8446]
[1723151740295,7.94780409,157.28,157.25,22.4854]
[1723151740517,6.3586,157.27,157.25,22.4854]
[1723151740717,6.3586,157.27,157.23,15.8998]
[1723151740999,6.3581,157.28,157.23,22.2598]
[1723151741421,6.3584,157.27,157.23,15.8998]
[1723151741607,6.3589,157.26,157.21,28.8459]
[1723151741813,6.3584,157.28,157.22,6.3604]
[1723151742015,15.8917,157.32,157.23,6.36]
[1723151742213,45.0,157.31,157.23,6.36]
[1723151742424,45.0,157.31,157.23,15.8998]
[1723151743532,6.3581,157.28,157.24,6.3597]
[1723151743716,6.3577,157.29,157.24,6.3597]
[1723151744225,45.0,157.31,157.23,22.2598]
[1723151744414,6.3585,157.27,157.23,15.8998]
[1723151745027,6.3585,157.27,157.23,22.2598]
[1723151745228,6.3585,157.27,157.23,15.8998]
[1723151745417,7.94875877,157.26,157.21,28.8462]
[1723151745810,6.3585,157.27,157.22,6.3605]
[1723151746620,45.0,157.31,157.21,22.4854]
[1723151746813,6.3592,157.26,157.21,28.8462]
[1723151747008,15.8934,157.3,157.21,22.4854]
[1723151747313,6.3596,157.25,157.21,22.4854]
[1723151747504,15.8959,157.28,157.21,22.4854]
[1723151748138,6.3597,157.24,157.21,22.4854]
[1723151748432,15.8959,157.28,157.21,22.4854]
[1723151748634,6.3605,157.22,157.18,15.9046]
[1723151748808,6.3605,157.22,157.18,22.2666]
[1723151749012,6.3601,157.23,157.18,22.2666]
[1723151749443,6.3605,157.22,157.18,15.9046]
[1723151749932,17.48829362,157.26,157.16,22.5324]
[1723151750105,6.3616,157.2,157.16,22.5324]
[1723151750937,17.58306041,157.19,157.13,6.60363795]
[1723151751145,15.9925,157.19,157.08,1.25989672]
[1723151751322,22.5528,157.26,157.14,15.9092]
[1723151751523,6.3606,157.22,157.14,15.9092]
[1723151751719,6.3613,157.2,157.15,7.62109662]
[1723151751926,6.3613,157.2,157.15,6.3629]
[1723151752236,6.3618,157.19,157.14,22.2729]
[1723151752415,6.3621,157.18,157.14,15.9092]
[1723151753308,6.362,157.19,157.14,22.2728]
[1723151753508,6.3621,157.18,157.14,22.2728]
[1723151753707,17.49162248,157.23,157.14,22.2728]
[1723151753708,6.3617,157.19,157.14,22.2728]
[1723151754139,6.3621,157.18,157.14,22.2728]
[1723151754436,6.3621,157.18,157.13,12.6182]
[1723151754611,6.3625,157.17,157.13,6.2542]
[1723151755005,6.3618,157.19,157.14,6.3634]
[1723151755611,6.3625,157.17,157.13,22.1636]
[1723151756523,6.3625,157.17,157.13,28.5277]
[1723151756842,6.3622,157.18,157.13,28.5277]
[1723151757343,6.3618,157.19,157.14,6.3636]
[1723151757558,15.9009,157.23,157.13,22.1636]
[1723151757559,34.46586205,157.26,157.15,15.9077]
[1723151757837,18.47336205,157.26,157.15,15.9077]
[1723151758039,6.36,157.24,157.19,6.3616]
[1723151758224,6.3601,157.23,157.19,6.3616]
[1723151758425,6.3601,157.23,157.18,7.6196647]
[1723151758614,6.3605,157.22,157.18,7.6196647]
[1723151759642,6.3605,157.22,157.18,6.362]
[1723151760539,6.3605,157.22,157.17,22.2681]
[1723151760741,15.8998,157.24,157.14,15.9091]
[1723151760949,2.58410137,157.27,157.13,6.2542]
[1723151761128,53.3868,157.3,157.14,1.25788359]
[1723151761452,45.0,157.29,157.15,6.3632]
[1723151761614,6.3617,157.19,157.14,6.3636]
[1723151761949,6.3625,157.17,157.13,22.1641]
[1723151762744,6.3622,157.18,157.13,22.1641]
[1723151762949,15.899,157.25,157.13,23.42288761]
[1723151763151,6.361,157.21,157.16,6.3628]
[1723151763333,15.899,157.25,157.15,15.9076]
[1723151763526,6.3613,157.2,157.16,6.3628]
[1723151764321,15.899,157.25,157.17,6.3624]
[1723151764547,15.899,157.25,157.18,1.25790846]
[1723151764730,6.3606,157.22,157.18,7.62000846]
[1723151765320,6.3606,157.22,157.18,1.25790846]
[1723151765525,6.361,157.21,157.17,6.3625]
[1723151765739,6.3613,157.2,157.16,6.3628]
[1723151766338,6.3613,157.2,157.16,7.62086908]
[1723151766548,15.899,157.25,157.17,1.25806255]
[1723151766853,5.3605,157.22,157.18,1.25774142]
[1723151767055,5.3605,157.22,157.17,6.3624]
[1723151767524,15.899,157.25,157.15,15.9076]
[1723151767841,6.3616,157.2,157.15,22.2708]
[1723151769049,6.362,157.19,157.15,15.9076]
[1723151769743,6.362,157.19,157.14,6.3633]
[1723151769744,6.3624,157.18,157.13,12.6182]
[1723151769931,6.3624,157.18,157.14,6.3636]
[1723151771148,6.3629,157.16,157.13,6.2542]
[1723151771450,6.3626,157.17,157.13,6.2542]
[1723151772251,6.3626,157.17,157.12,37.5788]
[1723151772438,6.3637,157.14,157.1,12.97135742]
[1723151772640,15.9055,157.18,157.09,22.2584]
[1723151772834,6.3653,157.1,157.08,15.9118]
[1723151773253,6.3657,157.09,157.05,22.2618]
[1723151773566,6.3666,157.07,157.05,6.3444]
[1723151773730,6.3669,157.06,157.04,15.3307]
[1723151774053,15.9123,157.12,157.04,15.3307]
[1723151774431,6.3661,157.09,157.04,21.6984]
[1723151775752,6.3654,157.1,157.05,1.26091711]
[1723151776051,6.3654,157.1,157.05,7.62821711]
[1723151776357,6.3649,157.11,157.06,6.3668]
[1723151776742,6.3654,157.1,157.06,6.3668]
[1723151778455,6.3654,157.1,157.05,6.3673]
[1723151779568,6.3657,157.09,157.05,6.3673]
[1723151781362,6.3663,157.08,157.04,15.3307]
[1723151781562,15.9112,157.13,157.04,15.3307]
[1723151781751,45.0,157.12,157.04,15.3307]
[1723151782157,6.3668,157.07,157.04,15.3307]
[1723151782548,6.3673,157.05,157.04,15.3307]
[1723151782858,6.367,157.06,157.04,15.3307]
[1723151784859,6.3664,157.08,157.04,15.3307]
[1723151785449,47.489,157.14,157.05,1.26131844]
[1723151785450,2.51498166,157.13,157.05,1.26131844]
[1723151785653,6.365,157.11,157.06,6.3668]
[1723151785841,6.3654,157.1,157.06,22.2837]
[1723151786244,6.365,157.11,157.06,22.2837]
[1723151787368,47.4818,157.18,157.07,1.26064451]
[1723151787369,6.3646,157.12,157.07,1.26064451]
[1723151787576,6.3646,157.12,157.07,7.62704451]
[1723151788652,6.3646,157.12,157.04,15.3307]
[1723151788653,15.9089,157.15,157.04,15.3307]
[1723151788966,6.366,157.09,157.04,15.3307]
[1723151789163,18.48091082,157.15,157.04,15.3307]
[1723151789164,18.48091082,157.15,157.05,15.9179]
[1723151789377,18.48091082,157.15,157.05,17.17870299]
[1723151789560,18.48091082,157.15,157.06,6.2746]
[1723151789874,6.3646,157.12,157.07,7.62665498]
[1723151792064,15.9089,157.15,157.06,7.53485678]
[1723151792265,6.3658,157.09,157.06,6.2746]
[1723151792655,6.3654,157.1,157.06,7.53517939]
[1723151792861,15.9089,157.15,157.06,7.53517939]
[1723151793067,15.9089,157.15,157.07,15.9158]
[1723151793375,6.3646,157.12,157.08,7.62608725]
[1723151793560,6.3646,157.12,157.08,1.26008725]
[1723151794075,1.591257,157.17,157.06,6.2746]
[1723151794382,6.3665,157.07,157.06,6.2746]
[1723151794870,6.3659,157.09,157.06,6.2746]
[1723151795089,15.9119,157.12,157.06,6.2746]
[1723151795452,6.3657,157.1,157.06,6.2746]
[1723151795771,6.3658,157.09,157.06,6.2746]
[1723151796672,47.4818,157.18,157.06,6.2746]
[1723151796871,47.4818,157.18,157.07,1.26010496]
[1723151797174,47.4818,157.18,157.04,15.3307]
[1723151797175,31.8195,157.14,157.04,15.3307]
[1723151797367,6.367,157.06,157.04,15.3307]
[1723151799079,15.9144,157.09,157.04,15.3307]
[1723151799080,6.3658,157.09,157.04,15.3307]
[1723151799385,6.3658,157.09,157.05,1.26097998]
[1723151800580,6.3663,157.08,157.04,15.3307]
[1723151800777,18.47065512,157.12,157.04,15.3307]
[1723151800981,6.3672,157.06,157.04,15.3307]
[1723151803898,6.3666,157.07,157.04,15.3307]
[1723151806492,6.3661,157.08,157.04,15.3307]
[1723151806883,6.3667,157.07,157.04,15.3307]
[1723151807789,6.3671,157.06,157.04,15.3307]
[1723151808187,6.3666,157.07,157.04,15.3307]
[1723151808605,6.3662,157.08,157.04,15.3307]
[1723151810604,6.3667,157.07,157.04,15.3307]
[1723151811804,18.47065512,157.12,157.04,15.3307]
[1723151811805,6.367,157.06,157.04,15.3307]
[1723151813903,6.3673,157.05,157.04,15.3307]
[1723151814308,6.3666,157.07,157.04,15.3307]
[1723151814470,2.55885512,157.12,157.04,15.3307]
[1723151814471,6.3662,157.08,157.04,15.3307]
[1723151816595,6.3666,157.07,157.04,15.3307]
[1723151817394,6.367,157.06,157.04,15.3307]
[1723151820106,6.3673,157.05,157.04,15.3307]
[1723151820305,6.367,157.06,157.04,15.3307]
[1723151824610,6.3666,157.07,157.04,15.3307]
[1723151826203,6.367,157.06,157.04,15.3307]
[1723151827128,1.59182891,157.08,157.01,15.9219]
[1723151827129,6.3673,157.05,157.01,15.9219]
[1723151827622,1.59182891,157.08,157.0,28.741]
[1723151827623,6.3686,157.02,157.0,22.3719]